fUST/lending_fUST_20240611
["ID","MTS","AMOUNT","RATE_DAILY","PERIOD"]
[329088902,1718097043080,-500.0,0.00021917,2]
[329088903,1718097043090,-500.0,0.00021917,2]
[329088904,1718097043100,-500.0,0.00021917,2]
[329088905,1718097043109,-505.03349213,0.00021917,2]
[329088906,1718097043119,-500.0,0.00021917,2]
[329088907,1718097043128,-500.0,0.00021917,2]
[329088908,1718097043139,-151.0,0.00021917,2]
[329088909,1718097043150,-500.0,0.00021917,2]
[329088910,1718097043161,-500.0,0.00021917,2]
[329088911,1718097043171,-511.46602592,0.00021917,2]
[329088912,1718097043181,-500.0,0.00021917,2]
[329088913,1718097043192,-507.83060781,0.00021917,2]
[329088914,1718097043203,-500.0,0.00021917,2]
[329088915,1718097043213,-501.41958495,0.00021917,2]
[329088916,1718097043223,-500.0,0.00021917,2]
[329088917,1718097043234,-500.0,0.00021917,2]
[329088918,1718097043244,-500.97617179,0.00021917,2]
[329088919,1718097043255,-500.0,0.00021917,2]
[329088920,1718097043265,-500.0,0.00021917,2]
[329088921,1718097043276,-500.0,0.00021917,2]
[329088922,1718097043286,-543.65113368,0.00021917,2]
[329088923,1718097043296,-500.0,0.00021917,2]
[329088924,1718097043307,-501.77015956,0.00021917,2]
[329088925,1718097043317,-2895.9,0.00021917,2]
[329088926,1718097043328,-500.0,0.00021917,2]
[329088927,1718097043338,-500.0,0.00021917,2]
[329088928,1718097043349,-500.0,0.00021917,2]
[329088929,1718097043359,-504.60574249,0.00021917,2]
[329088930,1718097043369,-523.64325891,0.00021917,2]
[329088931,1718097043380,-500.0,0.00021917,2]
[329088932,1718097043390,-500.0,0.00021917,2]
[329088933,1718097043401,-505.76753032,0.00021917,2]
[329088934,1718097043411,-500.0,0.00021917,2]
[329088935,1718097043421,-501.2120773,0.00021917,2]
[329088936,1718097043432,-500.0,0.00021917,2]
[329088937,1718097043442,-165.902219,0.00021917,2]
[329088938,1718097043452,-500.0,0.00021917,2]
[329088939,1718097043462,-927.61,0.00021917,2]
[329088940,1718097043473,-151.0,0.00021917,2]
[329088941,1718097043484,-165.902219,0.00021917,2]
[329088942,1718097043495,-500.0,0.00021917,2]
[329088943,1718097043506,-151.0,0.00021917,2]
[329088944,1718097043516,-500.0,0.00021917,2]
[329088945,1718097043526,-500.0,0.00021917,2]
[329088946,1718097043536,-500.0,0.00021917,2]
[329088947,1718097043548,-502.50623745,0.00021917,2]
[329088948,1718097043558,-500.93578537,0.00021917,2]
[329088949,1718097043569,-500.0,0.00021917,2]
[329088950,1718097043579,-500.0,0.00021917,2]
[329088951,1718097043589,-500.0,0.00021917,2]
[329088952,1718097043600,-885.4,0.00021917,2]
[329088953,1718097043610,-200.78800434,0.00021917,2]
[329088954,1718097043620,-500.0,0.00021917,2]
[329088955,1718097043631,-518.98291501,0.00021917,2]
[329088956,1718097043641,-500.0,0.00021917,2]
[329088957,1718097043651,-501.08768205,0.00021917,2]
[329088958,1718097043661,-525.03726627,0.00021917,2]
[329088959,1718097043672,-500.0,0.00021917,2]
[329088960,1718097043682,-500.0,0.00021917,2]
[329088961,1718097043692,-151.988398,0.00021917,2]
[329088963,1718097043702,-500.0,0.00021917,2]
[329088965,1718097043712,-500.0,0.00021917,2]
[329088967,1718097043723,-183.12086041,0.00021917,2]
[329088968,1718097043733,-500.0,0.00021917,2]
[329088969,1718097043745,-500.0,0.00021917,2]
[329088970,1718097043755,-151.0,0.00021917,2]
[329088971,1718097043766,-500.0,0.00021917,2]
[329088972,1718097043776,-500.0,0.00021917,2]
[329088973,1718097043788,-500.0,0.00021917,2]
[329088974,1718097043799,-500.0,0.00021917,2]
[329088975,1718097043812,-500.0,0.00021917,2]
[329088976,1718097043823,-500.0,0.00021917,2]
[329088977,1718097043833,-500.0,0.00021917,2]
[329088978,1718097043844,-500.0,0.00021917,2]
[329088979,1718097043853,-500.0,0.00021917,2]
[329088981,1718097043864,-500.0,0.00021917,2]
[329088982,1718097043874,-505.26650834,0.00021917,2]
[329088983,1718097043884,-500.0,0.00021917,2]
[329088984,1718097043895,-447.96430116,0.00021917,2]
[329088985,1718097043908,-500.0,0.00021917,2]
[329088986,1718097043919,-500.0,0.00021917,2]
[329088988,1718097043929,-500.0,0.00021917,2]
[329088990,1718097043939,-503.47289318,0.00021917,2]
[329088991,1718097043949,-500.0,0.00021917,2]
[329088992,1718097043959,-505.09307229,0.00021917,2]
[329088993,1718097043969,-500.0,0.00021917,2]
[329088994,1718097043983,-500.0,0.00021917,2]
[329088995,1718097043993,-500.0,0.00021917,2]
[329088996,1718097044007,-504.95685484,0.00021917,2]
[329088997,1718097044019,-15916.22,0.00021917,2]
[329088998,1718097044029,-3324.38,0.00021917,2]
[329088999,1718097044039,-500.0,0.00021917,2]
[329089000,1718097044051,-500.0,0.00021917,2]
[329089001,1718097044062,-1939.07,0.00021917,2]
[329089002,1718097044076,-500.0,0.00021917,2]
[329089003,1718097044085,-526.47922446,0.00021917,2]
[329089004,1718097044096,-500.0,0.00021917,2]
[329089005,1718097044107,-502.43667258,0.00021917,2]
[329089006,1718097044117,-500.0,0.00021917,2]
[329089007,1718097044129,-552.30676508,0.00021917,2]
[329089008,1718097044139,-500.0,0.00021917,2]
[329089009,1718097044150,-500.0,0.00021917,2]
[329089010,1718097044161,-1516.92,0.00021917,2]
[329089011,1718097044171,-500.0,0.00021917,2]
[329089012,1718097044181,-500.0,0.00021917,2]
[329089013,1718097044192,-151.0,0.00021917,2]
[329089014,1718097044202,-500.0,0.00021917,2]
[329089015,1718097044214,-500.0,0.00021917,2]
[329089016,1718097044224,-500.0,0.00021917,2]
[329089017,1718097044235,-500.0,0.00021917,2]
[329089018,1718097044245,-500.0,0.00021917,2]
[329089019,1718097044256,-2208.64,0.00021917,2]
[329089020,1718097044266,-500.0,0.00021917,2]
[329089021,1718097044277,-500.0,0.00021917,2]
[329089022,1718097044287,-508.10020336,0.00021917,2]
[329089023,1718097044297,-500.0,0.00021917,2]
[329089024,1718097044308,-500.0,0.00021917,2]
[329089025,1718097044319,-500.0,0.00021917,2]
[329089026,1718097044330,-500.0,0.00021917,2]
[329089027,1718097044340,-500.0,0.00021917,2]
[329089028,1718097044351,-500.0,0.00021917,2]
[329089029,1718097044362,-151.0,0.00021917,2]
[329089030,1718097044373,-500.0,0.00021917,2]
[329089031,1718097044383,-500.0,0.00021917,2]
[329089032,1718097044394,-500.0,0.00021917,2]
[329089033,1718097044405,-1779.83,0.00021917,2]
[329089034,1718097044416,-560.63,0.00021917,2]
[329089035,1718097044426,-500.0,0.00021917,2]
[329089036,1718097044437,-292.92614782,0.00021917,2]
[329089037,1718097044448,-500.0,0.00021917,2]
[329089038,1718097044459,-151.0,0.00021917,2]
[329089039,1718097044470,-500.0,0.00021917,2]
[329089040,1718097044480,-500.0,0.00021917,2]
[329089041,1718097044491,-500.0,0.00021917,2]
[329089042,1718097044501,-500.0,0.00021917,2]
[329089043,1718097044512,-500.0,0.00021917,2]
[329089044,1718097044522,-500.0,0.00021917,2]
[329089045,1718097044532,-501.62414382,0.00021917,2]
[329089046,1718097044543,-500.0,0.00021917,2]
[329089047,1718097044553,-505.82639184,0.00021917,2]
[329089048,1718097044564,-500.0,0.00021917,2]
[329089049,1718097044575,-219.79078929,0.00021917,2]
[329089050,1718097044586,-500.0,0.00021917,2]
[329089051,1718097044596,-500.0,0.00021917,2]
[329089052,1718097044607,-497.34216697,0.00021917,2]
[329089053,1718097044618,-164.50644238,0.00021917,2]
[329089054,1718097044629,-500.0,0.00021917,2]
[329089055,1718097044639,-500.0,0.00021917,2]
[329089056,1718097044650,-262.099115,0.00021917,2]
[329089057,1718097044660,-304.216103,0.00021917,2]
[329089058,1718097044671,-500.0,0.00021917,2]
[329089059,1718097044682,-500.0,0.00021917,2]
[329089060,1718097044692,-304.216103,0.00021917,2]
[329089061,1718097044703,-502.71974628,0.00021917,2]
[329089062,1718097044713,-500.0,0.00021917,2]
[329089063,1718097044723,-500.0,0.00021917,2]
[329089064,1718097044735,-500.0,0.00021917,2]
[329089065,1718097044745,-500.0,0.00021917,2]
[329089066,1718097044756,-1207.97,0.00021917,2]
[329089067,1718097044766,-500.0,0.00021917,2]
[329089068,1718097044776,-500.0,0.00021917,2]
[329089069,1718097044786,-500.0,0.00021917,2]
[329089070,1718097044798,-500.0,0.00021917,2]
[329089071,1718097044808,-500.0,0.00021917,2]
[329089072,1718097044820,-500.0,0.00021917,2]
[329089073,1718097044832,-309.09284422,0.00021917,2]
[329089074,1718097044843,-368.41660308,0.00021917,2]
[329089075,1718097044854,-2660.25,0.00021917,2]
[329089076,1718097044866,-240.47598047,0.00021917,2]
[329089077,1718097044877,-503.93438398,0.00021917,2]
[329089078,1718097044888,-500.0,0.00021917,2]
[329089079,1718097044906,-513.97518462,0.00021917,2]
[329089080,1718097044916,-500.0,0.00021917,2]
[329089081,1718097044927,-500.0,0.00021917,2]
[329089082,1718097044939,-504.13251582,0.00021917,2]
[329089083,1718097044949,-500.0,0.00021917,2]
[329089084,1718097044960,-743.31,0.00021917,2]
[329089085,1718097044970,-500.0,0.00021917,2]
[329089086,1718097044982,-500.0,0.00021917,2]
[329089087,1718097044993,-500.0,0.00021917,2]
[329089088,1718097045008,-502.98750538,0.00021917,2]
[329089089,1718097045019,-500.0,0.00021917,2]
[329089090,1718097045029,-500.0,0.00021917,2]
[329089091,1718097045040,-500.0,0.00021917,2]
[329089092,1718097045050,-535.27825355,0.00021917,2]
[329089093,1718097045061,-503.80865292,0.00021917,2]
[329089094,1718097045072,-500.0,0.00021917,2]
[329089095,1718097045083,-504.23118899,0.00021917,2]
[329089096,1718097045094,-151.0,0.00021917,2]
[329089097,1718097045104,-502.80384388,0.00021917,2]
[329089098,1718097045115,-501.11646839,0.00021917,2]
[329089099,1718097045126,-500.0,0.00021917,2]
[329089100,1718097045137,-500.0,0.00021917,2]
[329089101,1718097045234,-500.0,0.00021917,2]
[329089102,1718097045245,-500.0,0.00021917,2]
[329089103,1718097045255,-500.0,0.00021917,2]
[329089104,1718097045266,-505.54806492,0.00021917,2]
[329089105,1718097045277,-501.72439855,0.00021917,2]
[329089106,1718097045287,-500.0,0.00021917,2]
[329089107,1718097045298,-500.0,0.00021917,2]
[329089108,1718097045309,-151.0,0.00021917,2]
[329089109,1718097045321,-495.15691351,0.00021917,2]
[329089110,1718097045330,-500.0,0.00021917,2]
[329089111,1718097045341,-500.0,0.00021917,2]
[329089112,1718097045351,-500.0,0.00021917,2]
[329089113,1718097045362,-500.0,0.00021917,2]
[329089114,1718097045372,-151.0,0.00021917,2]
[329089115,1718097045383,-500.0,0.00021917,2]
[329089116,1718097045393,-500.0,0.00021917,2]
[329089117,1718097045403,-151.0,0.00021917,2]
[329089118,1718097045414,-169.426568,0.00021917,2]
[329089119,1718097045424,-500.0,0.00021917,2]
[329089120,1718097045434,-500.0,0.00021917,2]
[329089121,1718097045445,-500.0,0.00021917,2]
[329089122,1718097045456,-169.426568,0.00021917,2]
[329089123,1718097045466,-2171.82,0.00021917,2]
[329089124,1718097045476,-500.0,0.00021917,2]
[329089125,1718097045487,-500.0,0.00021917,2]
[329089126,1718097045497,-500.0,0.00021917,2]
[329089128,1718097045508,-500.0,0.00021917,2]
[329089129,1718097045520,-500.0,0.00021917,2]
[329089130,1718097045531,-526.23,0.00021917,2]
[329089131,1718097045542,-500.0,0.00021917,2]
[329089132,1718097045554,-502.13028345,0.00021917,2]
[329089133,1718097045564,-503.05819437,0.00021917,2]
[329089134,1718097045576,-500.0,0.00021917,2]
[329089135,1718097045586,-500.0,0.00021917,2]
[329089136,1718097045596,-500.0,0.00021917,2]
[329089137,1718097045606,-500.0,0.00021917,2]
[329089138,1718097045617,-500.0,0.00021917,2]
[329089139,1718097045627,-500.0,0.00021917,2]
[329089140,1718097045638,-382.74222411,0.00021917,2]
[329089141,1718097045648,-500.0,0.00021917,2]
[329089142,1718097045660,-166.666666,0.00021918,2]
[329089143,1718097045671,-624.47420274,0.00021964,2]
[329089144,1718097045682,-1000.0,0.00022,2]
[329089145,1718097045693,-660.2,0.00022006,3]
[329089146,1718097045704,-529.1,0.0002219,2]
[329089147,1718097045715,-500.0,0.00022191,2]
[329089148,1718097045725,-501.54962265,0.00022191,2]
[329089149,1718097045736,-500.0,0.00022191,2]
[329089150,1718097045746,-500.0,0.00022191,2]
[329089151,1718097045757,-500.0,0.00022191,2]
[329089152,1718097045768,-500.0,0.00022191,2]
[329089153,1718097045778,-151.0,0.00022191,2]
[329089154,1718097045788,-500.0,0.00022191,2]
[329089155,1718097045799,-500.0,0.00022191,2]
[329089156,1718097045809,-645.6530324,0.00022191,2]
[329089157,1718097045820,-500.0,0.00022191,2]
[329089158,1718097045831,-500.0,0.00022191,2]
[329089159,1718097045841,-500.0,0.00022191,2]
[329089160,1718097045851,-500.0,0.00022191,2]
[329089161,1718097045862,-500.0,0.00022191,4]
[329089162,1718097045872,-151.0,0.00022191,2]
[329089163,1718097045883,-151.0,0.00022191,2]
[329089164,1718097045894,-500.0,0.00022191,2]
[329089165,1718097045910,-500.0,0.00022191,2]
[329089166,1718097045920,-500.0,0.00022191,2]
[329089168,1718097045930,-151.0,0.00022191,2]
[329089170,1718097045941,-157.7551,0.00022191,2]
[329089172,1718097045952,-500.0,0.00022191,2]
[329089174,1718097045962,-500.0,0.00022191,2]
[329089176,1718097045972,-500.0,0.00022191,2]
[329089178,1718097045985,-500.0,0.00022191,2]
[329089180,1718097045996,-500.0,0.00022191,2]
[329089182,1718097046013,-500.0,0.00022191,2]
[329089184,1718097046023,-500.0,0.00022191,2]
[329089186,1718097046033,-505.96727161,0.00022191,2]
[329089188,1718097046043,-151.0,0.00022191,2]
[329089190,1718097046053,-500.0,0.00022191,2]
[329089192,1718097046063,-500.0,0.00022191,2]
[329089194,1718097046073,-503.87656587,0.00022191,2]
[329089196,1718097046083,-505.98515896,0.00022191,2]
[329089197,1718097046093,-500.0,0.00022191,2]
[329089198,1718097046103,-540.39361235,0.00022191,2]
[329089199,1718097046113,-500.0,0.00022191,2]
[329089200,1718097046122,-500.0,0.00022191,2]
[329089202,1718097046133,-500.0,0.00022191,2]
[329089203,1718097046143,-500.0,0.00022191,2]
[329089205,1718097046154,-505.63814232,0.00022191,2]
[329089207,1718097046164,-151.0,0.00022191,2]
[329089210,1718097046175,-500.0,0.00022191,2]
[329089211,1718097046185,-151.0,0.00022191,2]
[329089213,1718097046195,-500.0,0.00022191,2]
[329089215,1718097046206,-500.0,0.00022191,2]
[329089217,1718097046216,-500.0,0.00022191,2]
[329089219,1718097046226,-500.0,0.00022191,2]
[329089221,1718097046236,-500.0,0.00022191,2]
[329089223,1718097046245,-500.0,0.00022191,2]
[329089225,1718097046255,-505.03802978,0.00022191,2]
[329089227,1718097046265,-502.82200852,0.00022191,2]
[329089229,1718097046274,-500.0,0.00022191,2]
[329089231,1718097046284,-500.0,0.00022191,2]
[329089233,1718097046294,-627.85,0.00022191,2]
[329089234,1718097046305,-500.0,0.00022191,2]
[329089236,1718097046316,-500.0,0.00022191,2]
[329089239,1718097046326,-500.0,0.00022191,2]
[329089240,1718097046335,-501.51972479,0.00022191,2]
[329089243,1718097046346,-500.0,0.00022191,2]
[329089245,1718097046356,-500.0,0.00022191,2]
[329089246,1718097046366,-505.29367401,0.00022191,2]
[329089248,1718097046377,-500.0,0.00022191,2]
[329089250,1718097046387,-500.0,0.00022191,2]
[329089252,1718097046397,-500.0,0.00022191,2]
[329089254,1718097046407,-500.0,0.00022191,2]
[329089256,1718097046418,-500.0,0.00022191,2]
[329089258,1718097046428,-509.61964294,0.00022191,2]
[329089260,1718097046439,-196.16288426,0.00022191,2]
[329089262,1718097046448,-500.0,0.00022191,2]
[329089264,1718097046459,-364.69045059,0.00022191,2]
[329089266,1718097046469,-503.85875661,0.00022191,2]
[329089268,1718097046479,-500.0,0.00022191,2]
[329089270,1718097046489,-506.08784265,0.00022191,2]
[329089272,1718097046499,-500.0,0.00022191,2]
[329089274,1718097046509,-500.0,0.00022191,2]
[329089276,1718097046519,-500.0,0.00022191,2]
[329089278,1718097046529,-500.0,0.00022191,2]
[329089280,1718097046539,-500.0,0.00022191,2]
[329089282,1718097046549,-500.0,0.00022191,2]
[329089284,1718097046560,-509.00200849,0.00022191,2]
[329089286,1718097046570,-505.48884414,0.00022191,2]
[329089288,1718097046581,-500.0,0.00022191,2]
[329089290,1718097046591,-500.0,0.00022191,2]
[329089292,1718097046601,-524.38823343,0.00022191,2]
[329089294,1718097046612,-180.7908262,0.00022191,2]
[329089296,1718097046622,-500.0,0.00022191,2]
[329089298,1718097046633,-391.27118508,0.00022191,2]
[329089299,1718097046643,-500.0,0.00022191,2]
[329089300,1718097046653,-511.15885728,0.00022191,2]
[329089302,1718097046664,-500.0,0.00022191,2]
[329089304,1718097046674,-500.0,0.00022191,2]
[329089306,1718097046684,-500.0,0.00022191,2]
[329089308,1718097046694,-151.0,0.00022191,2]
[329089310,1718097046705,-500.0,0.00022191,2]
[329089312,1718097046716,-151.0,0.00022191,2]
[329089314,1718097046726,-503.40066937,0.00022191,2]
[329089316,1718097046737,-500.0,0.00022191,2]
[329089318,1718097046750,-506.32759368,0.00022191,2]
[329089320,1718097046760,-500.0,0.00022191,2]
[329089322,1718097046770,-500.0,0.00022191,2]
[329089324,1718097046781,-500.0,0.00022191,2]
[329089326,1718097046791,-500.0,0.00022191,2]
[329089328,1718097046802,-500.0,0.00022191,2]
[329089330,1718097046812,-500.0,0.00022191,2]
[329089332,1718097046823,-500.0,0.00022191,2]
[329089334,1718097046834,-531.35162347,0.00022191,2]
[329089336,1718097046845,-500.0,0.00022191,2]
[329089338,1718097046855,-500.0,0.00022191,2]
[329089340,1718097046865,-510.68745744,0.00022191,2]
[329089342,1718097046875,-503.785688,0.00022191,2]
[329089344,1718097046886,-508.40819592,0.00022191,2]
[329089346,1718097046900,-500.0,0.00022191,2]
[329089348,1718097046910,-500.0,0.00022191,2]
[329089350,1718097046920,-500.0,0.00022191,2]
[329089352,1718097046931,-500.0,0.00022191,2]
[329089354,1718097046943,-500.0,0.00022191,2]
[329089356,1718097046953,-506.83143554,0.00022191,2]
[329089359,1718097046972,-500.0,0.00022191,2]
[329089361,1718097046985,-500.0,0.00022191,2]
[329089362,1718097046995,-348.56717671,0.00022191,2]
[329089365,1718097047015,-500.0,0.00022191,2]
[329089367,1718097047025,-500.0,0.00022191,2]
[329089369,1718097047036,-1141.37,0.00022191,2]
[329089371,1718097047047,-510.74944463,0.00022191,2]
[329089373,1718097047057,-500.0,0.00022191,2]
[329089375,1718097047067,-500.0,0.00022191,2]
[329089377,1718097047079,-508.86402537,0.00022191,2]
[329089379,1718097047089,-500.0,0.00022191,2]
[329089381,1718097047099,-500.0,0.00022191,2]
[329089383,1718097047109,-504.0485279,0.00022191,2]
[329089385,1718097047120,-1198.07,0.00022191,2]
[329089387,1718097047130,-500.0,0.00022191,2]
[329089388,1718097047140,-500.0,0.00022191,2]
[329089390,1718097047151,-500.0,0.00022191,2]
[329089391,1718097047161,-503.82780805,0.00022191,2]
[329089393,1718097047171,-500.0,0.00022191,2]
[329089395,1718097047181,-355.53376981,0.00022191,2]
[329089397,1718097047192,-500.0,0.00022191,2]
[329089399,1718097047202,-500.0,0.00022191,2]
[329089401,1718097047213,-151.0,0.00022191,2]
[329089403,1718097047223,-175.08426606,0.00022191,2]
[329089405,1718097047234,-500.0,0.00022191,2]
[329089407,1718097047244,-509.61278591,0.00022191,2]
[329089409,1718097047254,-500.0,0.00022191,2]
[329089411,1718097047264,-500.0,0.00022191,2]
[329089413,1718097047275,-500.0,0.00022191,2]
[329089415,1718097047285,-515.80793677,0.00022191,2]
[329089417,1718097047295,-500.0,0.00022191,2]
[329089419,1718097047305,-500.0,0.00022191,2]
[329089421,1718097047315,-500.0,0.00022191,2]
[329089423,1718097047326,-2895.9,0.00022191,2]
[329089425,1718097047336,-500.0,0.00022191,2]
[329089427,1718097047347,-500.0,0.00022191,2]
[329089429,1718097047357,-500.0,0.00022191,2]
[329089431,1718097047368,-500.0,0.00022191,2]
[329089433,1718097047379,-503.43438394,0.00022191,2]
[329089434,1718097047390,-500.0,0.00022191,2]
[329089436,1718097047401,-500.0,0.00022191,2]
[329089444,1718097047537,-165.902219,0.00022191,2]
[329089445,1718097047548,-927.61,0.00022191,2]
[329089447,1718097047559,-165.902219,0.00022191,2]
[329089449,1718097047570,-151.0,0.00022191,2]
[329089450,1718097047580,-151.0,0.00022191,2]
[329089452,1718097047591,-165.902219,0.00022191,2]
[329089453,1718097047602,-238.2832711,0.00022191,2]
[329089455,1718097047613,-151.0,0.00022191,2]
[329089457,1718097047623,-500.0,0.00022191,2]
[329089458,1718097047634,-151.0,0.00022191,2]
[329089460,1718097047644,-165.902219,0.00022191,2]
[329089462,1718097047655,-500.0,0.00022191,2]
[329089463,1718097047665,-500.0,0.00022191,2]
[329089465,1718097047675,-124.34051607,0.00022191,2]
[329089478,1718097047832,-375.65948393,0.00022191,2]
[329089480,1718097047843,-506.84725216,0.00022191,2]
[329089482,1718097047854,-500.0,0.00022191,2]
[329089484,1718097047865,-584.83733018,0.00022191,2]
[329089486,1718097047878,-300.56266982,0.00022191,2]
[329089488,1718097047888,-500.0,0.00022191,2]
[329089490,1718097047902,-500.0,0.00022191,2]
[329089492,1718097047913,-270.60994776,0.00022191,2]
[329089495,1718097047926,-229.39005224,0.00022191,2]
[329089497,1718097047937,-500.0,0.00022191,2]
[329089499,1718097047950,-151.0,0.00022191,2]
[329089501,1718097047960,-151.0,0.00022191,2]
[329089503,1718097047970,-500.0,0.00022191,2]
[329089505,1718097047983,-500.0,0.00022191,2]
[329089507,1718097047994,-500.0,0.00022191,2]
[329089508,1718097048008,-44.27850415,0.00022191,2]
[329089511,1718097048021,-455.72149585,0.00022191,2]
[329089513,1718097048032,-500.0,0.00022191,2]
[329089515,1718097048042,-500.0,0.00022191,2]
[329089516,1718097048052,-507.35553631,0.00022191,2]
[329089518,1718097048062,-500.0,0.00022191,2]
[329089520,1718097048073,-500.0,0.00022191,2]
[329089522,1718097048085,-500.0,0.00022191,2]
[329089524,1718097048096,-500.0,0.00022191,2]
[329089525,1718097048106,-259.26556618,0.00022191,2]
[329089526,1718097048117,-2220.7445198,0.00022191,2]
[329089527,1718097048141,-151.0,0.00021917,2]
[329089528,1718097048152,-175.08456874,0.00022191,2]
[329089529,1718097048164,-713.77734259,0.00022191,2]
[329089530,1718097048268,-1059.33113735,0.00022191,2]
[329089531,1718097048285,-869.9125219,0.00022191,2]
[329089532,1718097048367,-10877.36990962,0.00022191,2]
[329089533,1718097048378,-3324.38,0.00022191,2]
[329089534,1718097048388,-500.0,0.00022191,2]
[329089535,1718097048399,-500.0,0.00022191,2]
[329089536,1718097048408,-1939.07,0.00022191,2]
[329089537,1718097048418,-503.20839671,0.00022191,2]
[329089538,1718097048428,-500.0,0.00022191,2]
[329089539,1718097048438,-500.0,0.00022191,2]
[329089540,1718097048449,-500.0,0.00022191,2]
[329089541,1718097048459,-500.0,0.00022191,2]
[329089542,1718097048469,-1516.92,0.00022191,2]
[329089543,1718097048480,-514.91145344,0.00022191,2]
[329089544,1718097048490,-500.0,0.00022191,2]
[329089545,1718097048501,-507.45816292,0.00022191,2]
[329089546,1718097048511,-151.0,0.00022191,2]
[329089547,1718097048521,-508.2773343,0.00022191,2]
[329089548,1718097048531,-169.435874,0.00022191,2]
[329089549,1718097048541,-364.57358683,0.00022191,2]
[329089550,1718097048552,-500.0,0.00022191,2]
[329089551,1718097048562,-510.95659183,0.00022191,2]
[329089552,1718097048573,-2208.64,0.00022191,2]
[329089553,1718097048583,-617.91865752,0.00022191,2]
[329089554,1718097048593,-500.0,0.00022191,2]
[329089555,1718097048604,-500.0,0.00022191,2]
[329089556,1718097048614,-500.0,0.00022191,2]
[329089557,1718097048625,-504.56734209,0.00022191,2]
[329089558,1718097048636,-500.0,0.00022191,2]
[329089559,1718097048646,-500.0,0.00022191,2]
[329089560,1718097048657,-541.75463018,0.00022191,2]
[329089561,1718097048667,-151.0,0.00022191,2]
[329089562,1718097048678,-151.0,0.00022191,2]
[329089563,1718097048688,-500.0,0.00022191,2]
[329089564,1718097048699,-500.0,0.00022191,2]
[329089565,1718097048709,-1779.83,0.00022191,2]
[329089566,1718097048719,-560.63,0.00022191,2]
[329089567,1718097048730,-420.92324053,0.00022191,2]
[329089568,1718097048743,-86.74343313,0.00022191,2]
[329089569,1718097048753,-500.0,0.00022191,2]
[329089570,1718097048763,-151.0,0.00022191,2]
[329089571,1718097048773,-151.0,0.00022191,2]
[329089572,1718097048784,-500.0,0.00022191,2]
[329089573,1718097048795,-507.09658554,0.00022191,2]
[329089574,1718097048805,-500.0,0.00022191,2]
[329089575,1718097048816,-500.0,0.00022191,2]
[329089576,1718097048826,-500.0,0.00022191,2]
[329089577,1718097048836,-500.0,0.00022191,2]
[329089578,1718097048846,-500.0,0.00022191,2]
[329089579,1718097048857,-500.0,0.00022191,2]
[329089580,1718097048867,-500.0,0.00022191,2]
[329089581,1718097048877,-500.0,0.00022191,2]
[329089582,1718097048888,-500.0,0.00022191,2]
[329089583,1718097048901,-304.216103,0.00022191,2]
[329089584,1718097048912,-304.216103,0.00022191,2]
[329089585,1718097048922,-500.0,0.00022191,2]
[329089586,1718097048932,-500.0,0.00022191,2]
[329089587,1718097048945,-304.216103,0.00022191,2]
[329089588,1718097048955,-304.216103,0.00022191,2]